Workbook

Sheet Tarif (hidden)
A1: N°Article | B1: Désignation | C1: Colis | D1: Tarif HT au 01/01/2016 | E1: Eco Participation HT | F1: Classe Energétique Chauffage | G1: Classe Ener- gétique ECS | H1: Profil de puisage ECS | I1: Code EAN | J1: Poids | K1: Long mm | L1: Larg mm | M1: Haut mm | N1: Groupe article
A3: LA LEGISLATION IMPOSE UNE ECO-PARTICIPATION AFIN D'ORGANISER SUR LE TERRITOIRE NATIONAL LA COLLECTE ET
A4: LE RECYCLAGE DE CERTAINS PRODUITS ELECTRIQUES ET ELECTRONIQUES D'EQUIPEMENTS DE LA MAISON . CELA SIGNIFIE QUE LE
A5: CONSOMMATEUR POURRA DEMANDER AU PROFESSIONNEL LA REPRISE DE L'ANCIEN MATERIEL CONTRE L'ACHAT D'UN NOUVEL
A6: EQUIPEMENT DE MEME NATURE , SELON LE PRINCIPE DE << UN >> POUR << UN >> .
A7: LES PRODUITS ELIGIBLES SONT REPERTORIES SUR LE SITE OFFICIEL : www.eco-systemes.fr
A8: ET APPARAISSENT DANS NOTRE TARIF AVEC UN MONTANT HT D'ECO-PARTICIPATION
A9: * TOUT MONTANT D'ECO PARTICIPATION EST SUSCEPTIBLE D'EVOLUER EN CAS DE MODIFICATION DU BAREME PAR NOTRE ORGANISME COLLECTEUR
A11: FAMILLE: | B11: POMPE A CHALEUR
B13: VERSIONS POUR CHAUFFAGE ET RAFRAICHISSEMENT
A14: 7610054 | B14: OENOVIAPAC-2 4 MR-3/H | D14: =D30+D37+D42 -> 3984 | F14: A+++ | G14: / | H14: / | I14: 366123859383 | J14: 83.7 | N14: C9
A15: 7610055 | B15: OENOVIAPAC-2 4 MR-3/EM | D15: =D30+D39+D42 -> 3984 | F15: A+++ | G15: / | H15: / | I15: 366123859384 | J15: 83.7 | N15: C9
A16: 7610056 | B16: OENOVIAPAC-2 6 MR-3/H | D16: =D31+D37+D42 -> 4071 | F16: A++ | G16: / | H16: / | I16: 366123859385 | J16: 82.7 | N16: C9
A17: 7610057 | B17: OENOVIAPAC-2 6 MR-3/EM | D17: =D31+D39+D42 -> 4071 | F17: A++ | G17: / | H17: / | I17: 366123859386 | J17: 82.7 | N17: C9
A18: 7610058 | B18: OENOVIAPAC-2 8 MR-3/H | D18: =D32+D37 -> 4750 | F18: A++ | G18: / | H18: / | I18: 366123859387 | J18: 112.2 | N18: C9
A19: 7610059 | B19: OENOVIAPAC-2 8 MR-3/EM | D19: =D32+D39 -> 4750 | F19: A++ | G19: / | H19: / | I19: 366123859388 | J19: 112.2 | N19: C9
A20: 7610060 | B20: OENOVIAPAC-2 11 MR-3/H | D20: =D33+D38 -> 6109 | F20: A++ | G20: / | H20: / | I20: 366123859389 | J20: 168.7 | N20: C9
A21: 7610061 | B21: OENOVIAPAC-2 11 MR-3/EM | D21: =D33+D40 -> 6109 | F21: A++ | G21: / | H21: / | I21: 366123859390 | J21: 168.7 | N21: C9
A22: 7610062 | B22: OENOVIAPAC-2 11 TR-3/H | D22: =D34+D38 -> 6407 | F22: A++ | G22: / | H22: / | I22: 366123859391 | J22: 182.7 | N22: C9
A23: 7610063 | B23: OENOVIAPAC-2 11 TR-3/ET | D23: =D34+D41 -> 6407 | F23: A++ | G23: / | H23: / | I23: 366123859392 | J23: 182.7 | N23: C9
A24: 7610064 | B24: OENOVIAPAC-2 16 MR-3/H | D24: =D35+D38 -> 7180 | F24: A++ | G24: / | H24: / | I24: 366123859393 | J24: 168.7 | N24: C9
A25: 7610065 | B25: OENOVIAPAC-2 16 MR-3/EM | D25: =D35+D40 -> 7180 | F25: A++ | G25: / | H25: / | I25: 366123859394 | J25: 168.7 | N25: C9
A26: 7610066 | B26: OENOVIAPAC-2 16 TR-3/H | D26: =D36+D38 -> 7596 | F26: A++ | G26: / | H26: / | I26: 366123859395 | J26: 182.7 | N26: C9
A27: 7610067 | B27: OENOVIAPAC-2 16 TR-3/ET | D27: =D36+D41 -> 7596 | F27: A++ | G27: / | H27: / | I27: 366123859396 | J27: 182.7 | N27: C9
A29: COMPOSANTS
A30: 7603571 | B30: AWHP 4 MR | C30: EH336 | D30: 1799 | E30: 5 | F30: / | G30: / | H30: / | I30: 3661238581012 | J30: 48 | K30: 450 | L30: 950 | M30: 690 | N30: C9
A31: 7609925 | B31: AWHP 6 MR-2 | C31: EH380 | D31: 1886 | E31: 5 | F31: / | G31: / | H31: / | I31: 3661238589513 | J31: 47 | K31: 450 | L31: 950 | M31: 690 | N31: C9
A32: 7609926 | B32: AWHP 8 MR-2 | C32: EH381 | D32: 2622 | E32: 5 | F32: / | G32: / | H32: / | I32: 3661238589520 | J32: 77 | K32: 450 | L32: 1040 | M32: 1030 | N32: C9
A33: 7609927 | B33: AWHP 11 MR-2 | C33: EH382 | D33: 3456 | E33: 5 | F33: / | G33: / | H33: / | I33: 3661238589537 | J33: 131 | K33: 450 | L33: 1040 | M33: 1440 | N33: C9
A34: 7609928 | B34: AWHP 11 TR-2 | C34: EH383 | D34: 3754 | E34: 5 | F34: / | G34: / | H34: / | I34: 3661238589544 | J34: 145 | K34: 450 | L34: 1040 | M34: 1440 | N34: C9
A35: 7609929 | B35: AWHP 16 MR-2 | C35: EH384 | D35: 4527 | E35: 5 | F35: / | G35: / | H35: / | I35: 3661238589551 | J35: 131 | K35: 450 | L35: 1040 | M35: 1440 | N35: C9
A36: 7609930 | B36: AWHP 16 TR-2 | C36: EH385 | D36: 4943 | E36: 5 | F36: / | G36: / | H36: / | I36: 3661238589568 | J36: 145 | K36: 450 | L36: 1040 | M36: 1440 | N36: C9
A37: 7609961 | B37: MHX-3/H 4-8 | C37: EH413 | D37: 2128 | F37: / | G37: / | H37: / | I37: 3661238589841 | J37: 35.2 | K37: 465 | L37: 465 | M37: 800 | N37: C9
A38: 7609962 | B38: MHX-3/H 11-16 | C38: EH414 | D38: 2653 | F38: / | G38: / | H38: / | I38: 3661238589858 | J38: 37.7 | K38: 465 | L38: 465 | M38: 800 | N38: C9
A39: 7609963 | B39: MHX-3/EM 4-8 | C39: EH415 | D39: 2128 | F39: / | G39: / | H39: / | I39: 3661238589865 | J39: 35.2 | K39: 465 | L39: 465 | M39: 800 | N39: C9
A40: 7609964 | B40: MHX-3/EM 11-16 | C40: EH416 | D40: 2653 | F40: / | G40: / | H40: / | I40: 3661238589872 | J40: 37.7 | K40: 465 | L40: 465 | M40: 800 | N40: C9
A41: 7609965 | B41: MHX-3/ET 11-16 | C41: EH417 | D41: 2653 | F41: / | G41: / | H41: / | I41: 3661238589889 | J41: 37.7 | K41: 465 | L41: 465 | M41: 800 | N41: C9
A42: 100015480 | B42: RACCORD D'ADAPTATION FRIGO POUR 4 kW ET 6 kW | C42: EH146 | D42: 57 | F42: / | G42: / | H42: / | I42: 3661238381612 | J42: 0.5 | K42: 150 | L42: 80 | M42: 30 | N42: C9
B44: VERSIONS POUR CLIMATISATION
A45: 7610068 | B45: OENOVIAPAC-2 4 MR-3/HI | D45: =D61+D68+D73+D75 -> 5016 | F45: A+++ | G45: / | H45: / | I45: 366123859397 | J45: 87.8 | N45: C9
A46: 7610069 | B46: OENOVIAPAC-2 4 MR-3/EMI | D46: =D61+D70+D73+D74 -> 4924 | F46: A+++ | G46: / | H46: / | I46: 366123859398 | J46: 86.7 | N46: C9
A47: 7610070 | B47: OENOVIAPAC-2 6 MR-3/HI | D47: =D62+D68+D73+D75 -> 5103 | F47: A++ | G47: / | H47: / | I47: 366123859399 | J47: 86.8 | N47: C9
A48: 7610071 | B48: OENOVIAPAC-2 6 MR-3/EMI | D48: =D62+D70+D73+D74 -> 5011 | F48: A++ | G48: / | H48: / | I48: 366123859400 | J48: 85.7 | N48: C9
A49: 7610072 | B49: OENOVIAPAC-2 8 MR-3/HI | D49: =D63+D68+D75 -> 5782 | F49: A++ | G49: / | H49: / | I49: 366123859401 | J49: 116.3 | N49: C9
A50: 7610073 | B50: OENOVIAPAC-2 8 MR-3/EMI | D50: =D63+D70+D74 -> 5690 | F50: A++ | G50: / | H50: / | I50: 366123859402 | J50: 115.2 | N50: C9
A51: 7610074 | B51: OENOVIAPAC-2 11 MR-3/HI | D51: =D64+D69+D75 -> 7332 | F51: A++ | G51: / | H51: / | I51: 366123859403 | J51: 172.8 | N51: C9
A52: 7610075 | B52: OENOVIAPAC-2 11 MR-3/EMI | D52: =D64+D71+D74 -> 7240 | F52: A++ | G52: / | H52: / | I52: 366123859404 | J52: 171.7 | N52: C9
A53: 7610076 | B53: OENOVIAPAC-2 11 TR-3/HI | D53: =D65+D69+D75 -> 7630 | F53: A++ | G53: / | H53: / | I53: 366123859405 | J53: 186.8 | N53: C9
A54: 7610077 | B54: OENOVIAPAC-2 11 TR-3/ETI | D54: =D65+D72+D74 -> 7538 | F54: A++ | G54: / | H54: / | I54: 366123859406 | J54: 185.7 | N54: C9
A55: 7610078 | B55: OENOVIAPAC-2 16 MR-3/HI | D55: =D66+D69+D75 -> 8403 | F55: A++ | G55: / | H55: / | I55: 366123859407 | J55: 172.8 | N55: C9
A56: 7610079 | B56: OENOVIAPAC-2 16 MR-3/EMI | D56: =D66+D71+D74 -> 8311 | F56: A++ | G56: / | H56: / | I56: 366123859408 | J56: 171.7 | N56: C9
A57: 7610080 | B57: OENOVIAPAC-2 16 TR-3/HI | D57: =D67+D69+D75 -> 8819 | F57: A++ | G57: / | H57: / | I57: 366123859409 | J57: 186.8 | N57: C9
A58: 7610081 | B58: OENOVIAPAC-2 16 TR-3/ETI | D58: =D67+D72+D74 -> 8727 | F58: A++ | G58: / | H58: / | I58: 366123859410 | J58: 185.7 | N58: C9
A60: COMPOSANTS
A61: 7603571 | B61: AWHP 4 MR | C61: EH336 | D61: 1799 | E61: 5 | F61: / | G61: / | H61: / | I61: 3661238581012 | J61: 48 | K61: 450 | L61: 950 | M61: 690 | N61: C9
A62: 7609925 | B62: AWHP 6 MR-2 | C62: EH380 | D62: 1886 | E62: 5 | F62: / | G62: / | H62: / | I62: 3661238589513 | J62: 47 | K62: 450 | L62: 950 | M62: 690 | N62: C9
A63: 7609926 | B63: AWHP 8 MR-2 | C63: EH381 | D63: 2622 | E63: 5 | F63: / | G63: / | H63: / | I63: 3661238589520 | J63: 77 | K63: 450 | L63: 1040 | M63: 1030 | N63: C9
A64: 7609927 | B64: AWHP 11 MR-2 | C64: EH382 | D64: 3456 | E64: 5 | F64: / | G64: / | H64: / | I64: 3661238589537 | J64: 131 | K64: 450 | L64: 1040 | M64: 1440 | N64: C9
A65: 7609928 | B65: AWHP 11 TR-2 | C65: EH383 | D65: 3754 | E65: 5 | F65: / | G65: / | H65: / | I65: 3661238589544 | J65: 145 | K65: 450 | L65: 1040 | M65: 1440 | N65: C9
A66: 7609929 | B66: AWHP 16 MR-2 | C66: EH384 | D66: 4527 | E66: 5 | F66: / | G66: / | H66: / | I66: 3661238589551 | J66: 131 | K66: 450 | L66: 1040 | M66: 1440 | N66: C9
A67: 7609930 | B67: AWHP 16 TR-2 | C67: EH385 | D67: 4943 | E67: 5 | F67: / | G67: / | H67: / | I67: 3661238589568 | J67: 145 | K67: 450 | L67: 1040 | M67: 1440 | N67: C9
A68: 7609966 | B68: MHX-3/HI 4-8 | C68: EH418 | D68: 2897 | F68: / | G68: / | H68: / | I68: 3661238589896 | J68: 35.2 | K68: 465 | L68: 465 | M68: 800 | N68: C9
A69: 7609967 | B69: MHX-3/HI 11-16 | C69: EH419 | D69: 3613 | F69: / | G69: / | H69: / | I69: 3661238589902 | J69: 37.7 | K69: 465 | L69: 465 | M69: 800 | N69: C9
A70: 7609968 | B70: MHX-3/EMI 4-8 | C70: EH420 | D70: 2897 | F70: / | G70: / | H70: / | I70: 3661238589919 | J70: 35.2 | K70: 465 | L70: 465 | M70: 800 | N70: C9
A71: 7609969 | B71: MHX-3/EMI 11-16 | C71: EH421 | D71: 3613 | F71: / | G71: / | H71: / | I71: 3661238589926 | J71: 37.7 | K71: 465 | L71: 465 | M71: 800 | N71: C9
A72: 7609970 | B72: MHX-3/ETI 11-16 | C72: EH422 | D72: 3613 | F72: / | G72: / | H72: / | I72: 3661238589933 | J72: 37.7 | K72: 465 | L72: 465 | M72: 800 | N72: C9
A73: 100015480 | B73: RACCORD D'ADAPTATION FRIGO POUR 4 kW ET 6 kW | C73: EH146 | D73: 57 | F73: / | G73: / | H73: / | I73: 3661238381612 | J73: 0.5 | K73: 150 | L73: 80 | M73: 30 | N73: C9
A74: 100015481 | B74: DOSSERET DE MONTAGE VERSION E | C74: EH147 | D74: 171 | F74: / | G74: / | H74: / | I74: 3661238381629 | J74: 3 | K74: 715 | L74: 420 | M74: 115 | N74: C9
A75: 100015482 | B75: DOSSERET DE MONTAGE VERSION H | C75: EH148 | D75: 263 | F75: / | G75: / | H75: / | I75: 3661238381636 | J75: 4.1 | K75: 715 | L75: 420 | M75: 115 | N75: C9
A77: OPTIONS
A78: 100004417 | B78: FILTRE 400UM + VANNE D'ISOLEMENT PAC ROE 6-10 ET ROE+ | C78: EH61 | D78: 103 | F78: / | G78: / | H78: / | I78: 3661238003415 | J78: 0.85 | K78: 175 | L78: 90 | M78: 130 | N78: C6
A79: 100011222 | B79: SUPPORT MURALE & PLOTS ANTIVIBRATILES POUR ROE-II AWHP 6-8 | C79: EH95 | D79: 159 | F79: / | G79: / | H79: / | I79: 3661238339927 | J79: 5.4 | K79: 820 | L79: 90 | M79: 90 | N79: C6
A80: 100012532 | B80: BAC DE RECUPERATION CONDENSATS POUR SUPPORT MURAL | C80: EH111 | D80: 139 | F80: / | G80: / | H80: / | I80: 3661238361553 | J80: 2 | K80: 960 | L80: 440 | M80: 80 | N80: C6
A81: 100012534 | B81: CORDON CHAUFFANT ELECTRIQUE | C81: EH113 | D81: 147 | F81: / | G81: / | H81: / | I81: 3661238361577 | J81: 0.2 | K81: 200 | L81: 200 | M81: 10 | N81: C6
A82: 100012533 | B82: SUPPORT POSE AU SOL AWHP | C82: EH112 | D82: 44 | F82: / | G82: / | H82: / | I82: 3661238361560 | J82: 1.2 | K82: 450 | L82: 140 | M82: 80 | N82: C6
A83: 100015476 | B83: LIAISON FRIGORIFIQUE PE 1/2" 1/4" - LG 10 m | C83: EH142 | D83: 228 | F83: / | G83: / | H83: / | I83: 3661238381575 | J83: 7.9 | K83: 600 | L83: 650 | M83: 150 | N83: C6
A84: 100012535 | B84: LIAISON FRIGORIFIQUE PE 5/8'' 3/8'' - LG 5m | C84: EH114 | D84: 228 | F84: / | G84: / | H84: / | I84: 3661238361522 | J84: 4.6 | K84: 600 | L84: 600 | M84: 150 | N84: C6
A85: 100012536 | B85: LIAISON FRIGORIFIQUE PE 5/8'' 3/8'' - LG 10m | C85: EH115 | D85: 407 | F85: / | G85: / | H85: / | I85: 3661238361539 | J85: 7.2 | K85: 600 | L85: 600 | M85: 200 | N85: C6
A86: 100012537 | B86: LIAISON FRIGORIFIQUE PE 5/8'' 3/8'' - LG 20m | C86: EH116 | D86: 736 | F86: / | G86: / | H86: / | I86: 3661238361546 | J86: 14.3 | K86: 750 | L86: 750 | M86: 230 | N86: C6
A87: 100008841 | B87: BALLON TAMPON 80L B 80 T | C87: EH85 | D87: 510 | F87: / | G87: / | H87: / | I87: 3661238166325 | J87: 44.5 | K87: 510 | L87: 510 | M87: 920 | N87: C6
A88: 100004415 | B88: BALLON TAMPON 160L B 150 T | C88: EH60 | D88: 765 | F88: / | G88: / | H88: / | I88: 3661238003422 | J88: 63.2 | K88: 825 | L88: 690 | M88: 1120 | N88: C6
A89: 100002276 | B89: VANNE D'INVERSION CHAUFFAGE SANITAIRE MC 35E MC 45 ET 65 | C89: HC135 | D89: 345 | F89: / | G89: / | H89: / | I89: 3661238007734 | J89: 1 | K89: 195 | L89: 155 | M89: 130 | N89: C0
A90: 100003301 | B90: KIT CABLAGE PLANCHER CHAUFFANT DIRECT | C90: HA249 | D90: 38 | E90: 0.01 | F90: / | G90: / | H90: / | I90: 3661238005570 | J90: 0.1 | K90: 210 | L90: 140 | M90: 20 | N90: C0
A91: 88017904 | B91: THERMOSTAT AMBIANCE PROGRAMMABLE (FILAIRE) | C91: AD191 | D91: 158 | E91: 0.08 | F91: / | G91: / | H91: / | I91: 3661238102415 | J91: 0.25 | K91: 135 | L91: 90 | M91: 55 | N91: C0
A92: 88017010 | B92: THERMOSTAT D'AMBIANCE PROGRAMMABLE (SANS FILS) | C92: AD192 | D92: 280 | E92: 0.08 | F92: / | G92: / | H92: / | I92: 3661238102439 | J92: 0.425 | K92: 180 | L92: 150 | M92: 90 | N92: C0
A93: 100015479 | B93: VANNE D'INVERSION CHAUFFAGE-SANITAIRE+SONDE ECS | C93: EH145 | D93: 328 | F93: / | G93: / | H93: / | I93: 3661238381605 | J93: 4.2 | K93: 410 | L93: 210 | M93: 125 | N93: C6
A94: 100015468 | B94: KIT RAC HYDRAULIQUE PAC - BALLON ECS | C94: EH149 | D94: 97 | F94: / | G94: / | H94: / | I94: 3661238413818 | J94: 1.2 | K94: 575 | L94: 505 | M94: 145 | N94: C6
A95: 100015481 | B95: DOSSERET DE MONTAGE VERSION E | C95: EH147 | D95: 171 | F95: / | G95: / | H95: / | I95: 3661238381629 | J95: 6 | K95: 715 | L95: 420 | M95: 115 | N95: C6
A98: 7610082 | B98: OENOVIAPAC-2 4 MR-3/H V220 | D98: =D114+D121+D126+D127+D128 -> 5874 | F98: A++ | G98: A | H98: XL | I98: 366123859326 | J98: 233.1 | N98: C9
A99: 7610083 | B99: OENOVIAPAC-2 4 MR-3/EM V220 | D99: =D114+D123+D126+D127+D128 -> 5985 | F99: A++ | G99: A | H99: XL | I99: 366123859327 | J99: 231.5 | N99: C9
A100: 7610084 | B100: OENOVIAPAC-2 6 MR-3/H V220 | D100: =D115+D121+D126+D127+D128 -> 5961 | F100: A+ | G100: A | H100: XL | I100: 366123859328 | J100: 232.1 | N100: C9
A101: 7610085 | B101: OENOVIAPAC-2 6 MR-3/EM V220 | D101: =D115+D123+D126+D127+D128 -> 6072 | F101: A+ | G101: A | H101: XL | I101: 366123859329 | J101: 230.5 | N101: C9
A102: 7610086 | B102: OENOVIAPAC-2 8 MR-3/H V220 | D102: =D116+D121+D126+D127 -> 6640 | F102: A++ | G102: A | H102: XL | I102: 366123859330 | J102: 261.6 | N102: C9
A103: 7610087 | B103: OENOVIAPAC-2 8 MR-3/EM V220 | D103: =D116+D123+D126+D127 -> 6751 | F103: A++ | G103: A | H103: XL | I103: 366123859411 | J103: 260 | N103: C9
A104: 7610088 | B104: OENOVIAPAC-2 11 MR-3/H V220 | D104: =D117+D122+D126+D127 -> 8664 | F104: A++ | G104: A | H104: XL | I104: 366123859412 | J104: 318.1 | N104: C9
A105: 7610089 | B105: OENOVIAPAC-2 11 MR-3/EM V220 | D105: =D117+D124+D126+D127 -> 8787 | F105: A++ | G105: A | H105: XL | I105: 366123859413 | J105: 316 | N105: C9
A106: 7610090 | B106: OENOVIAPAC-2 11 TR-3/H V220 | D106: =D118+D122+D126+D127 -> 8962 | F106: A++ | G106: A | H106: XL | I106: 366123859414 | J106: 332.1 | N106: C9
A107: 7610091 | B107: OENOVIAPAC-2 11 TR-3/ET V220 | D107: =D118+D125+D126+D127 -> 9085 | F107: A++ | G107: A | H107: XL | I107: 366123859415 | J107: 332 | N107: C9
A108: 7610092 | B108: OENOVIAPAC-2 16 MR-3/H V220 | D108: =D119+D122+D126+D127 -> 9735 | F108: A++ | G108: A | H108: XL | I108: 366123859416 | J108: 318.1 | N108: C9
A109: 7610093 | B109: OENOVIAPAC-2 16 MR-3/EM V220 | D109: =D119+D124+D126+D127 -> 9858 | F109: A++ | G109: A | H109: XL | I109: 366123859417 | J109: 316 | N109: C9
A110: 7610094 | B110: OENOVIAPAC-2 16 TR-3/H V220 | D110: =D120+D122+D126+D127 -> 10151 | F110: A++ | G110: A | H110: XL | I110: 366123859418 | J110: 332.1 | N110: C9
A111: 7610095 | B111: OENOVIAPAC-2 16 TR-3/ET V220 | D111: =D120+D125+D126+D127 -> 10274 | F111: A++ | G111: A | H111: XL | I111: 366123859419 | J111: 332 | N111: C9
A113: COMPOSANTS
A114: 7603571 | B114: AWHP 4 MR | C114: EH336 | D114: 1799 | E114: 5 | F114: / | G114: / | H114: / | I114: 3661238581012 | J114: 48 | K114: 450 | L114: 950 | M114: 690 | N114: C9
A115: 7609925 | B115: AWHP 6 MR-2 | C115: EH380 | D115: 1886 | E115: 5 | F115: / | G115: / | H115: / | I115: 3661238589513 | J115: 47 | K115: 450 | L115: 950 | M115: 690 | N115: C9
A116: 7609926 | B116: AWHP 8 MR-2 | C116: EH381 | D116: 2622 | E116: 5 | F116: / | G116: / | H116: / | I116: 3661238589520 | J116: 77 | K116: 450 | L116: 1040 | M116: 1030 | N116: C9
A117: 7609927 | B117: AWHP 11 MR-2 | C117: EH382 | D117: 3456 | E117: 5 | F117: / | G117: / | H117: / | I117: 3661238589537 | J117: 131 | K117: 450 | L117: 1040 | M117: 1440 | N117: C9
A118: 7609928 | B118: AWHP 11 TR-2 | C118: EH383 | D118: 3754 | E118: 5 | F118: / | G118: / | H118: / | I118: 3661238589544 | J118: 145 | K118: 450 | L118: 1040 | M118: 1440 | N118: C9
A119: 7609929 | B119: AWHP 16 MR-2 | C119: EH384 | D119: 4527 | E119: 5 | F119: / | G119: / | H119: / | I119: 3661238589551 | J119: 131 | K119: 450 | L119: 1040 | M119: 1440 | N119: C9
A120: 7609930 | B120: AWHP 16 TR-2 | C120: EH385 | D120: 4943 | E120: 5 | F120: / | G120: / | H120: / | I120: 3661238589568 | J120: 145 | K120: 450 | L120: 1040 | M120: 1440 | N120: C9
A121: 7609971 | B121: MHX-3/H 4-8 V220 | C121: EH423 | D121: 2207 | F121: / | G121: / | H121: / | I121: 3661238589940 | J121: 64.6 | K121: 775 | L121: 660 | M121: 1045 | N121: C9
A122: 7609972 | B122: MHX-3/H 11-16 V220 | C122: EH424 | D122: 3397 | F122: / | G122: / | H122: / | I122: 3661238589957 | J122: 67.1 | K122: 775 | L122: 660 | M122: 1045 | N122: C9
A123: 7609973 | B123: MHX-3/EM 4-8 V220 | C123: EH425 | D123: 2318 | F123: / | G123: / | H123: / | I123: 3661238589964 | J123: 63 | K123: 775 | L123: 660 | M123: 1045 | N123: C9
A124: 7609974 | B124: MHX-3/EM 11-16 V220 | C124: EH426 | D124: 3520 | F124: / | G124: / | H124: / | I124: 3661238589971 | J124: 65 | K124: 775 | L124: 660 | M124: 1045 | N124: C9
A125: 7609975 | B125: MHX-3/ET 11-16 V220 | C125: EH427 | D125: 3520 | F125: / | G125: / | H125: / | I125: 3661238589988 | J125: 67 | K125: 775 | L125: 660 | M125: 1045 | N125: C9
A126: 100016427 | B126: BALLON 220HPSL | C126: ER222 | D126: 1536 | F126: / | G126: / | H126: / | I126: 3661238493438 | J126: 115.5 | K126: 790 | L126: 675 | M126: 1160 | N126: C9
A127: 100018045 | B127: KIT TUBULURES DE RACCORDEMENT | C127: EH210 | D127: 275 | F127: / | G127: / | H127: / | I127: 3661238543720 | J127: 4.5 | K127: 720 | L127: 425 | M127: 120 | N127: C9
A128: 100015480 | B128: RACCORD D'ADAPTATION FRIGO POUR 4 kW ET 6 kW | C128: EH146 | D128: 57 | F128: / | G128: / | H128: / | I128: 3661238381612 | J128: 0.5 | K128: 150 | L128: 80 | M128: 30 | N128: C9
A130: OPTIONS
A131: 100011222 | B131: SUPPORT MURALE & PLOTS ANTIVIBRATILES POUR ROE-II AWHP 6-8 | C131: EH95 | D131: 159 | F131: / | G131: / | H131: / | I131: 3661238339927 | J131: 5.4 | K131: 820 | L131: 90 | M131: 90 | N131: C6
A132: 100018409 | B132: SUPPORT MURAL AWHP 11à 27 kW | C132: EH250 | D132: 163 | F132: / | G132: / | H132: / | I132: 3661238543874 | J132: 5 | K132: 820 | L132: 90 | M132: 90 | N132: C6
A133: 100012532 | B133: BAC DE RECUPERATION CONDENSATS POUR SUPPORT MURAL | C133: EH111 | D133: 139 | F133: / | G133: / | H133: / | I133: 3661238361553 | J133: 2 | K133: 960 | L133: 440 | M133: 80 | N133: C6
A134: 100012534 | B134: CORDON CHAUFFANT ELECTRIQUE | C134: EH113 | D134: 147 | F134: / | G134: / | H134: / | I134: 3661238361577 | J134: 0.2 | K134: 200 | L134: 200 | M134: 10 | N134: C6
A135: 100012533 | B135: SUPPORT POSE AU SOL AWHP | C135: EH112 | D135: 44 | F135: / | G135: / | H135: / | I135: 3661238361560 | J135: 1.2 | K135: 450 | L135: 140 | M135: 80 | N135: C6
A136: 100015476 | B136: LIAISON FRIGORIFIQUE PE 1/2" 1/4" - LG 10 m | C136: EH142 | D136: 228 | F136: / | G136: / | H136: / | I136: 3661238381575 | J136: 7.9 | K136: 600 | L136: 650 | M136: 150 | N136: C6
A137: 100012535 | B137: LIAISON FRIGORIFIQUE PE 5/8'' 3/8'' - LG 5m | C137: EH114 | D137: 228 | F137: / | G137: / | H137: / | I137: 3661238361522 | J137: 4.6 | K137: 600 | L137: 600 | M137: 150 | N137: C6
A138: 100012536 | B138: LIAISON FRIGORIFIQUE PE 5/8'' 3/8'' - LG 10m | C138: EH115 | D138: 407 | F138: / | G138: / | H138: / | I138: 3661238361539 | J138: 7.2 | K138: 600 | L138: 600 | M138: 200 | N138: C6
A139: 100012537 | B139: LIAISON FRIGORIFIQUE PE 5/8'' 3/8'' - LG 20m | C139: EH116 | D139: 736 | F139: / | G139: / | H139: / | I139: 3661238361546 | J139: 14.3 | K139: 750 | L139: 750 | M139: 230 | N139: C6
A140: 100008841 | B140: BALLON TAMPON 80L B 80 T | C140: EH85 | D140: 510 | F140: / | G140: / | H140: / | I140: 3661238166325 | J140: 44.5 | K140: 510 | L140: 510 | M140: 920 | N140: C6
A141: 100004415 | B141: BALLON TAMPON 160L B 150 T | C141: EH60 | D141: 765 | F141: / | G141: / | H141: / | I141: 3661238003422 | J141: 63.2 | K141: 825 | L141: 690 | M141: 1120 | N141: C6
A142: 100003301 | B142: KIT CABLAGE PLANCHER CHAUFFANT DIRECT | C142: HA249 | D142: 38 | E142: 0.01 | F142: / | G142: / | H142: / | I142: 3661238005570 | J142: 0.1 | K142: 210 | L142: 140 | M142: 20 | N142: C0
A143: 88017904 | B143: THERMOSTAT AMBIANCE PROGRAMMABLE (FILAIRE) | C143: AD191 | D143: 158 | E143: 0.08 | F143: / | G143: / | H143: / | I143: 3661238102415 | J143: 0.25 | K143: 135 | L143: 90 | M143: 55 | N143: C0
A144: 88017010 | B144: THERMOSTAT D'AMBIANCE PROGRAMMABLE (SANS FILS) | C144: AD192 | D144: 280 | E144: 0.08 | F144: / | G144: / | H144: / | I144: 3661238102439 | J144: 0.425 | K144: 180 | L144: 150 | M144: 90 | N144: C0
A145: 100015482 | B145: DOSSERET DE MONTAGE VERSION H | C145: EH148 | D145: 263 | F145: / | G145: / | H145: / | I145: 3661238381636 | J145: 4.1 | K145: 715 | L145: 420 | M145: 115 | N145: C0
A146: 100019114 | B146: KIT DETECTEUR DE CONDENSATION | C146: HK27 | D146: 208 | E146: 0.01 | F146: / | G146: / | H146: / | I146: 3661238569119 | J146: 0.7 | K146: 185 | L146: 130 | M146: 105 | N146: C0
A149: 7638440 | B149: OENOVIAPAC-2C 4 MR-4/H V200 | D149: =SUM(D165+D172+D176) -> 5874 | F149: A++ | G149: A | H149: L | I149: 3661238640337 | N149: C9
A150: 7638441 | B150: OENOVIAPAC-2C 4 MR-4/E V200 | D150: =SUM(D165+D174+D176) -> 5985 | F150: A++ | G150: A | H150: L | I150: 3661238640344 | N150: C9
A151: 7638442 | B151: OENOVIAPAC-2C 6 MR-4/H V200 | D151: =SUM(D166+D172+D176) -> 5961 | F151: A++ | G151: A | H151: L | I151: 3661238640351 | N151: C9
A152: 7638443 | B152: OENOVIAPAC-2C 6 MR-4/E V200 | D152: =SUM(D166+D174+D176) -> 6072 | F152: A++ | G152: A | H152: L | I152: 3661238640368 | N152: C9
A153: 7638444 | B153: OENOVIAPAC-2C 8 MR-4/H V200 | D153: =SUM(D167+D172) -> 6640 | F153: A++ | G153: A | H153: L | I153: 3661238640375 | N153: C9
A154: 7638445 | B154: OENOVIAPAC-2C 8 MR-4/E V200 | D154: =SUM(D167+D174) -> 6751 | F154: A++ | G154: A | H154: L | I154: 3661238640382 | N154: C9
A155: 7638446 | B155: OENOVIAPAC-2C 11 MR-4/H V200 | D155: =SUM(D168+D173) -> 8664 | F155: A++ | G155: A | H155: L | I155: 3661238640399 | N155: C9
A156: 7638447 | B156: OENOVIAPAC-2C 11 MR-4/E V200 | D156: =SUM(D168+D175) -> 8786 | F156: A++ | G156: A | H156: L | I156: 3661238640405 | N156: C9
A157: 7638448 | B157: OENOVIAPAC-2C 11 TR-4/H V200 | D157: =SUM(D169+D173) -> 8962 | F157: A++ | G157: A | H157: L | I157: 3661238640412 | N157: C9
A158: 7638449 | B158: OENOVIAPAC-2C 11 TR-4/E V200 | D158: =SUM(D169+D175) -> 9084 | F158: A++ | G158: A | H158: L | I158: 3661238640429 | N158: C9
A159: 7638450 | B159: OENOVIAPAC-2C 16 MR-4/H V200 | D159: =SUM(D170+D173) -> 9735 | F159: A++ | G159: A | H159: L | I159: 3661238640436 | N159: C9
A160: 7638451 | B160: OENOVIAPAC-2C 16 MR-4/E V200 | D160: =SUM(D170+D175) -> 9857 | F160: A++ | G160: A | H160: L | I160: 3661238640443 | N160: C9
A161: 7638452 | B161: OENOVIAPAC-2C 16 TR-4/H V200 | D161: =SUM(D171+D173) -> 10151 | F161: A++ | G161: A | H161: L | I161: 3661238640450 | N161: C9
A162: 7638453 | B162: OENOVIAPAC-2C 16 TR-4/E V200 | D162: =SUM(D171+D175) -> 10273 | F162: A++ | G162: A | H162: L | I162: 3661238640467 | N162: C9
A164: COMPOSANTS
A165: 7603571 | B165: AWHP 4 MR | C165: EH336 | D165: 1799 | E165: 5 | F165: / | G165: / | H165: / | I165: 3661238581012 | J165: 48 | K165: 450 | L165: 950 | M165: 690 | N165: C9
A166: 7609925 | B166: AWHP 6 MR-2 | C166: EH380 | D166: 1886 | E166: 5 | F166: / | G166: / | H166: / | I166: 3661238589513 | J166: 47 | K166: 450 | L166: 950 | M166: 690 | N166: C9
A167: 7609926 | B167: AWHP 8 MR-2 | C167: EH381 | D167: 2622 | E167: 5 | F167: / | G167: / | H167: / | I167: 3661238589520 | J167: 77 | K167: 450 | L167: 1040 | M167: 1030 | N167: C9
A168: 7609927 | B168: AWHP 11 MR-2 | C168: EH382 | D168: 3456 | E168: 5 | F168: / | G168: / | H168: / | I168: 3661238589537 | J168: 131 | K168: 450 | L168: 1040 | M168: 1440 | N168: C9
A169: 7609928 | B169: AWHP 11 TR-2 | C169: EH383 | D169: 3754 | E169: 5 | F169: / | G169: / | H169: / | I169: 3661238589544 | J169: 145 | K169: 450 | L169: 1040 | M169: 1440 | N169: C9
A170: 7609929 | B170: AWHP 16 MR-2 | C170: EH384 | D170: 4527 | E170: 5 | F170: / | G170: / | H170: / | I170: 3661238589551 | J170: 131 | K170: 450 | L170: 1040 | M170: 1440 | N170: C9
A171: 7609930 | B171: AWHP 16 TR-2 | C171: EH385 | D171: 4943 | E171: 5 | F171: / | G171: / | H171: / | I171: 3661238589568 | J171: 145 | K171: 450 | L171: 1040 | M171: 1440 | N171: C9
A172: 7625406 | B172: MHX-4/H 4-8 V200 | C172: EH546 | D172: 4018 | F172: / | G172: / | H172: / | I172: 3661238622968 | J172: 143 | K172: 970 | L172: 675 | M172: 1435 | N172: C9
A173: 7625407 | B173: MHX-4/H 11-16 V200 | C173: EH547 | D173: 5208 | F173: / | G173: / | H173: / | I173: 3661238622975 | J173: 145 | K173: 970 | L173: 675 | M173: 1435 | N173: C9
A174: 7625408 | B174: MHX-4/E 4-8 V200 | C174: EH548 | D174: 4129 | F174: / | G174: / | H174: / | I174: 3661238622982 | J174: 146 | K174: 970 | L174: 675 | M174: 1435 | N174: C9
A175: 7625421 | B175: MHX-4/E 11-16 V200 | C175: EH549 | D175: 5330 | F175: / | G175: / | H175: / | I175: 3661238622999 | J175: 148 | K175: 970 | L175: 675 | M175: 1435 | N175: C9
A176: 100015480 | B176: RACCORD D'ADAPTATION FRIGO POUR 4 kW ET 6 kW | C176: EH146 | D176: 57 | F176: / | G176: / | H176: / | I176: 3661238381612 | J176: 0.5 | K176: 150 | L176: 80 | M176: 30 | N176: C9
A178: OPTIONS
A179: 100004417 | B179: FILTRE 400UM + VANNE D'ISOLEMENT PAC ROE 6-10 ET ROE+ | C179: EH61 | D179: 103 | F179: / | G179: / | H179: / | I179: 3661238003415 | J179: 0.85 | K179: 175 | L179: 90 | M179: 130 | N179: C6
A180: 100011222 | B180: SUPPORT MURALE & PLOTS ANTIVIBRATILES POUR ROE-II AWHP 6-8 | C180: EH95 | D180: 159 | F180: / | G180: / | H180: / | I180: 3661238339927 | J180: 5.4 | K180: 820 | L180: 90 | M180: 90 | N180: C6
A181: 100018409 | B181: SUPPORT MURAL AWHP 11à 27 kW | C181: EH250 | D181: 163 | F181: / | G181: / | H181: / | I181: 3661238543874 | J181: 5 | K181: 820 | L181: 90 | M181: 90 | N181: C6
A182: 100012532 | B182: BAC DE RECUPERATION CONDENSATS POUR SUPPORT MURAL | C182: EH111 | D182: 139 | F182: / | G182: / | H182: / | I182: 3661238361553 | J182: 2 | K182: 960 | L182: 440 | M182: 80 | N182: C6
A183: 100012534 | B183: CORDON CHAUFFANT ELECTRIQUE | C183: EH113 | D183: 147 | F183: / | G183: / | H183: / | I183: 3661238361577 | J183: 0.2 | K183: 200 | L183: 200 | M183: 10 | N183: C6
A184: 100012533 | B184: SUPPORT POSE AU SOL AWHP | C184: EH112 | D184: 44 | F184: / | G184: / | H184: / | I184: 3661238361560 | J184: 1.2 | K184: 450 | L184: 140 | M184: 80 | N184: C6
A185: 100015476 | B185: LIAISON FRIGORIFIQUE PE 1/2" 1/4" - LG 10 m | C185: EH142 | D185: 284 | F185: / | G185: / | H185: / | I185: 3661238381575 | J185: 7.9 | K185: 600 | L185: 650 | M185: 150 | N185: C6
A186: 100012535 | B186: LIAISON FRIGORIFIQUE PE 5/8'' 3/8'' - LG 5m | C186: EH114 | D186: 228 | F186: / | G186: / | H186: / | I186: 3661238361522 | J186: 4.6 | K186: 600 | L186: 600 | M186: 150 | N186: C6
A187: 100012536 | B187: LIAISON FRIGORIFIQUE PE 5/8'' 3/8'' - LG 10m | C187: EH115 | D187: 407 | F187: / | G187: / | H187: / | I187: 3661238361539 | J187: 7.2 | K187: 600 | L187: 600 | M187: 200 | N187: C6
A188: 100012537 | B188: LIAISON FRIGORIFIQUE PE 5/8'' 3/8'' - LG 20m | C188: EH116 | D188: 736 | F188: / | G188: / | H188: / | I188: 3661238361546 | J188: 14.3 | K188: 750 | L188: 750 | M188: 230 | N188: C6
A189: 100008841 | B189: BALLON TAMPON 80L B 80 T | C189: EH85 | D189: 510 | F189: / | G189: / | H189: / | I189: 3661238166325 | J189: 44.5 | K189: 510 | L189: 510 | M189: 920 | N189: C6
A190: 100004415 | B190: BALLON TAMPON 160L B 150 T | C190: EH60 | D190: 765 | F190: / | G190: / | H190: / | I190: 3661238003422 | J190: 63.2 | K190: 825 | L190: 690 | M190: 1120 | N190: C6
A191: 7624902 | B191: KIT CABLAGE PLANCHER CHAUFFANT DIRECT | C191: HA255 | D191: 36 | F191: / | G191: / | H191: / | I191: 3661238618176 | J191: 0.1 | K191: 210 | L191: 140 | M191: 20 | N191: C0
A192: 88017904 | B192: THERMOSTAT AMBIANCE PROGRAMMABLE (FILAIRE) | C192: AD191 | D192: 158 | E192: 0.08 | F192: / | G192: / | H192: / | I192: 3661238102415 | J192: 0.25 | K192: 135 | L192: 90 | M192: 55 | N192: C0
A193: 88017010 | B193: THERMOSTAT D'AMBIANCE PROGRAMMABLE (SANS FILS) | C193: AD192 | D193: 280 | E193: 0.08 | F193: / | G193: / | H193: / | I193: 3661238102439 | J193: 0.425 | K193: 180 | L193: 150 | M193: 90 | N193: C0
A194: 100019114 | B194: KIT DETECTEUR DE CONDENSATION | C194: HK27 | D194: 208 | E194: 0.01 | F194: / | G194: / | H194: / | I194: 3661238569119 | J194: 0.7 | K194: 185 | L194: 130 | M194: 105 | N194: C0
A195: 7619010 | B195: KIT VANNE 3 VOIES | C195: EH528 | D195: 564 | E195: 0.17 | F195: / | G195: / | H195: / | I195: 3661238618152 | J195: 17.7 | K195: 750 | L195: 300 | M195: 150 | N195: C0
A196: 7622273 | B196: CARTE DE REGULATION 2 CIRCUITS | C196: EH527 | D196: 195 | E196: 0.01 | F196: / | G196: / | H196: / | I196: 3661238618145 | J196: 0.3 | K196: 185 | L196: 130 | M196: 105 | N196: C0
A197: 7626737 | B197: KIT ISOLATION MODE FROID | C197: EH 567 | D197: 204 | F197: / | G197: / | H197: / | I197: 3661238624115 | K197: 360 | L197: 340 | M197: 180 | N197: C0
A198: 7636899 | B198: KIT SILENCIEUX MODULE EXTERIEUR | C198: EH 572 | D198: 59 | E198: 0.01 | F198: / | G198: / | H198: / | I198: 3661238644335 | J198: 0.2 | K198: 170 | L198: 210 | M198: 20 | N198: C0
A200: OPTIONS ECS
A201: 7631121 | B201: KIT CONNEXION BASE | C201: EH590 | D201: 449 | I201: 3661238631229 | J201: 10.9 | K201: 1187 | L201: 397 | M201: 181 | N201: C6
A202: 7631133 | B202: KIT CONNEXION SECOND CIRCUIT | C202: EH591 | D202: 130 | I202: 3661238631311 | J202: 2.45 | K202: 600 | L202: 150 | M202: 100 | N202: C6
A203: 7631134 | B203: KIT CONNEXION CHAUDIERE APPOIN | C203: EH592 | D203: 130 | I203: 3661238631328 | J203: 2.1 | K203: 795 | L203: 160 | M203: 160 | N203: C6
A204: 7631764 | B204: KIT CONNEXION RECIRCULATIO | C204: EH593 | D204: 75 | I204: 3661238632349 | J204: 1.55 | K204: 600 | L204: 150 | M204: 100 | N204: C6
A207: 7609994 | B207: OENOVIAPAC-2 CONFORT 4 MR-2/H | D207: =D227+D236+D242 -> 4984 | F207: A++ | G207: / | H207: / | I207: 366123859365 | J207: 110.1 | N207: C6
A208: 7609995 | B208: OENOVIAPAC-2 CONFORT 4 MR-2/EM | D208: =D227+D238+D242 -> 5464 | F208: A++ | G208: / | H208: / | I208: 366123859366 | J208: 116.2 | N208: C6
A209: 7609996 | B209: OENOVIAPAC-2 CONFORT 6 MR-2/H | D209: =D228+D236+D242 -> 5071 | F209: A++ | G209: / | H209: / | I209: 366123859367 | J209: 109.1 | N209: C6
A210: 7609997 | B210: OENOVIAPAC-2 CONFORT 6 MR-2/EM | D210: =D228+D238+D242 -> 5551 | F210: A++ | G210: / | H210: / | I210: 366123859368 | J210: 115.2 | N210: C6
A211: 7609998 | B211: OENOVIAPAC-2 CONFORT 8 MR-2/H | D211: =D229+D236 -> 5750 | F211: A++ | G211: / | H211: / | I211: 366123859369 | J211: 138.6 | N211: C6
A212: 7609999 | B212: OENOVIAPAC-2 CONFORT 8 MR-2/EM | D212: =D229+D238 -> 6230 | F212: A++ | G212: / | H212: / | I212: 366123859370 | J212: 144.7 | N212: C6
A213: 7610000 | B213: OENOVIAPAC-2 CONFORT 11 MR-2/H | D213: =D230+D237 -> 7245 | F213: A++ | G213: / | H213: / | I213: 366123859371 | J213: 195.2 | N213: C6
A214: 7610001 | B214: OENOVIAPAC-2 CONFORT 11 MR-2/EM | D214: =D230+D239 -> 7811 | F214: A++ | G214: / | H214: / | I214: 366123859372 | J214: 205.5 | N214: C6
A215: 7610002 | B215: OENOVIAPAC-2 CONFORT 11 TR-2/H | D215: =D231+D237 -> 7543 | F215: A++ | G215: / | H215: / | I215: 366123859373 | J215: 209.2 | N215: C6
A216: 7610003 | B216: OENOVIAPAC-2 CONFORT 11 TR-2/ET | D216: =D231+D239 -> 8109 | F216: A++ | G216: / | H216: / | I216: 366123859374 | J216: 219.5 | N216: C6
A217: 7610004 | B217: OENOVIAPAC-2 CONFORT 16 MR-2/H | D217: =D232+D237 -> 8316 | F217: A++ | G217: / | H217: / | I217: 366123859375 | J217: 195.2 | N217: C6
A218: 7610005 | B218: OENOVIAPAC-2 CONFORT 16 MR-2/EM | D218: =D232+D239 -> 8882 | F218: A++ | G218: / | H218: / | I218: 366123859376 | J218: 205.5 | N218: C6
... 4510 more rows

Sheet MAtériels&calculs (hidden)
A1: références | B1: Dénomination | C1: Colis | D1: Prix
F2: Surface | G2: Station | I2: Régulation
A3: Stations | F3: ≤ 20 | G3: DKS 8-20 | H3: 7619964 | I3: Deltasol E (à ajouter) | J3: =A13 -> 7619972
A4: 7619964 | B4: =VLOOKUP(A4,Tarif!$1:$1048576,2,FALSE) -> STATION SOLAIRE SKS 13-45 | C4: =VLOOKUP(A4,Tarif!$1:$1048576,3,FALSE) -> ER665 | D4: =VLOOKUP(A4,Tarif!$1:$1048576,4,FALSE) -> 662 | F4: 21-30 | G4: DKCS 8-30 | H4: =A5 -> 7619966 | I4: Deltasol E (à ajouter) | J4: =A13 -> 7619972
A5: 7619966 | B5: =VLOOKUP(A5,Tarif!$1:$1048576,2,FALSE) -> STATION SOLAIRE STS 14-30 CME | C5: =VLOOKUP(A5,Tarif!$1:$1048576,3,FALSE) -> ER667 | D5: =VLOOKUP(A5,Tarif!$1:$1048576,4,FALSE) -> 2649 | F5: 31-50 | G5: DKCS 8-50 CME | H5: =A6 -> 7619967 | I5: Deltasol E (intégrée) | J5: ="" -> 
A6: 7619967 | B6: =VLOOKUP(A6,Tarif!$1:$1048576,2,FALSE) -> STATION SOLAIRE STS 14-50 CME | C6: =VLOOKUP(A6,Tarif!$1:$1048576,3,FALSE) -> ER668 | D6: =VLOOKUP(A6,Tarif!$1:$1048576,4,FALSE) -> 3057 | F6: 51-100 | G6: DKCS 12-100 CME | H6: =A7 -> 7619968 | I6: Deltasol E (intégrée) | J6: ="" -> 
A7: 7619968 | B7: =VLOOKUP(A7,Tarif!$1:$1048576,2,FALSE) -> STATION SOLAIRE STS 14-100 CME | C7: =VLOOKUP(A7,Tarif!$1:$1048576,3,FALSE) -> ER669 | D7: =VLOOKUP(A7,Tarif!$1:$1048576,4,FALSE) -> 6114 | F7: 101-200 | G7: DKCS 11-200 CME | H7: =A8 -> 7619970 | I7: Deltasol E (intégrée) | J7: ="" -> 
A8: 7619970 | B8: =VLOOKUP(A8,Tarif!$1:$1048576,2,FALSE) ->  | C8: =VLOOKUP(A8,Tarif!$1:$1048576,3,FALSE) ->  | D8: =VLOOKUP(A8,Tarif!$1:$1048576,4,FALSE) ->  | F8: 201-300 | G8: DKCS 11-300 CME | H8: =A9 -> 7619971 | I8: Deltasol E (intégrée) | J8: ="" -> 
A9: 7619971 | B9: =VLOOKUP(A9,Tarif!$1:$1048576,2,FALSE) ->  | C9: =VLOOKUP(A9,Tarif!$1:$1048576,3,FALSE) ->  | D9: =VLOOKUP(A9,Tarif!$1:$1048576,4,FALSE) -> 
A11: Régulation deltasol E | F11: Appoint
F12: Electrique
A13: 7619972 | B13: =VLOOKUP(A13,Tarif!$1:$1048576,2,FALSE) -> REGULATION SOL COLLECTIF SC5 | C13: =VLOOKUP(A13,Tarif!$1:$1048576,3,FALSE) -> ER672 | D13: =VLOOKUP(A13,Tarif!$1:$1048576,4,FALSE) -> 596 | F13: Hydraulique
A15: Sondes | F15: Hydraulique | G15: CME | H15: DL2 | I15: CS10 | J15: COMPT ACS | K15: COMPT ECHO solaire | L15: COMPT ECHO (relève) | M15: COMPT ECHO bouclage | N15: Compt elec accessoire | O15: Compteur elec appoint | P15: PT 1000
F16: référence | G16: =A31 -> 100017498 | H16: =A35 -> 100013514 | I16: =A17 -> 89804815 | J16: =VLOOKUP(XnA!E51,'MAtériels&calculs'!F38:G41,2,FALSE) -> 100017492 | K16: =IF(OR(XnA!E42='MAtériels&calculs'!F18,XnA!E42='MAtériels&calculs'!F17),G34,"") -> 100017495 | L16: =IF(AND(XnA!E45="Hydraulique",XnA!O45="Non"),VLOOKUP(XnA!E47,'MAtériels&calculs'!F34:G36,2,FALSE),"") -> 100017495 | M16: =IF(XnA!I42="Oui",VLOOKUP(XnA!I45,'MAtériels&calculs'!F34:G37,2,FALSE),"") ->  | P16: =A18 -> 100003690
A17: 89804815 | B17: =VLOOKUP(A17,Tarif!$1:$1048576,2,FALSE) -> SONDE D'IRRADIATION CS10 | C17: =VLOOKUP(A17,Tarif!$1:$1048576,3,FALSE) -> EC175 | D17: =VLOOKUP(A17,Tarif!$1:$1048576,4,FALSE) -> 142 | F17: ≤ 20 | G17: 1 | H17: 1 | I17: 1 | J17: 1 | K17: 1 | L17: =IF(O17=1,0,IF(XnA!$E$45="Hydraulique",1,0)) -> 1 | M17: =IF(XnA!$I$42="Oui",1,0) -> 0 | N17: 1 | O17: =IF(XnA!$E$45="Electrique",1,0) -> 0 | P17: =2+SUM(J17+K17+L17+M17)*2 -> 8
A18: 100003690 | B18: =CONCATENATE(VLOOKUP(A18,Tarif!$1:$1048576,2,FALSE)," (2 par compteur)") -> SONDE A APPLIQUE PT1000 (2 par compteur) | C18: =VLOOKUP(A18,Tarif!$1:$1048576,3,FALSE) -> EC171 | D18: =VLOOKUP(A18,Tarif!$1:$1048576,4,FALSE) -> 61 | F18: 21-30 | G18: 1 | H18: 1 | I18: 1 | J18: 1 | K18: 1 | L18: =IF(O18=1,0,IF(XnA!$E$45="Hydraulique",1,0)) -> 1 | M18: =IF(XnA!$I$42="Oui",1,0) -> 0 | N18: 1 | O18: =IF(XnA!$E$45="Electrique",1,0) -> 0 | P18: 8
F19: 31-50 | G19: 1 | H19: 1 | I19: 1 | J19: 1 | K19: 0 | L19: =IF(O19=1,0,IF(XnA!$E$45="Hydraulique",1,0)) -> 1 | M19: =IF(XnA!$I$42="Oui",1,0) -> 0 | N19: 1 | O19: =IF(XnA!$E$45="Electrique",1,0) -> 0 | P19: 6
A20: Comptage | F20: 51-100 | G20: 1 | H20: 1 | I20: 1 | J20: 1 | K20: 0 | L20: =IF(O20=1,0,IF(XnA!$E$45="Hydraulique",1,0)) -> 1 | M20: =IF(XnA!$I$42="Oui",1,0) -> 0 | N20: 1 | O20: =IF(XnA!$E$45="Electrique",1,0) -> 0 | P20: 6
F21: 101-200 | G21: 1 | H21: 1 | I21: 1 | J21: 1 | K21: 0 | L21: =IF(O21=1,0,IF(XnA!$E$45="Hydraulique",1,0)) -> 1 | M21: =IF(XnA!$I$42="Oui",1,0) -> 0 | N21: 1 | O21: =IF(XnA!$E$45="Electrique",1,0) -> 0 | P21: 6
A22: 100017492 | B22: =CONCATENATE(VLOOKUP(A22,Tarif!$1:$1048576,2,FALSE)," (besoins ecs)") -> COMPTEUR EAU FROIDE ACS 3,5m3/H (besoins ecs) | C22: =VLOOKUP(A22,Tarif!$1:$1048576,3,FALSE) -> ER307 | D22: =VLOOKUP(A22,Tarif!$1:$1048576,4,FALSE) -> 678 | F22: 201-300 | G22: 1 | H22: 1 | I22: 1 | J22: 1 | K22: 0 | L22: =IF(O22=1,0,IF(XnA!$E$45="Hydraulique",1,0)) -> 1 | M22: =IF(XnA!$I$42="Oui",1,0) -> 0 | N22: 1 | O22: =IF(XnA!$E$45="Electrique",1,0) -> 0 | P22: 6
A23: 100017493 | B23: =CONCATENATE(VLOOKUP(A23,Tarif!$1:$1048576,2,FALSE)," (besoins ecs)") -> COMPTEUR EAU FROIDE ACS 5m3/H (besoins ecs) | C23: =VLOOKUP(A23,Tarif!$1:$1048576,3,FALSE) -> ER308 | D23: =VLOOKUP(A23,Tarif!$1:$1048576,4,FALSE) -> 747
A24: 100017494 | B24: =CONCATENATE(VLOOKUP(A24,Tarif!$1:$1048576,2,FALSE)," (besoins ecs)") -> COMPTEUR EAU FROIDE ACS 10m3/H (besoins ecs) | C24: =VLOOKUP(A24,Tarif!$1:$1048576,3,FALSE) -> ER309 | D24: =VLOOKUP(A24,Tarif!$1:$1048576,4,FALSE) -> 961 | F24: Electrique | G24: CME | H24: DL2 | I24: CS10 | J24: COMPT ACS | K24: COMPT ECHO solaire | L24: COMPT ECHO (relève) | M24: COMPT ECHO bouclage | N24: Compt elec accessoire | O24: Compteur elec appoint | P24: Pt 1000
A25: 100017495 | B25: =VLOOKUP(A25,Tarif!$1:$1048576,2,FALSE) -> COMPT.FLU.CHAUD US ECHO 1.5M3 | C25: =VLOOKUP(A25,Tarif!$1:$1048576,3,FALSE) -> ER310 | D25: =VLOOKUP(A25,Tarif!$1:$1048576,4,FALSE) -> 430 | F25: ≤ 20 | G25: 1 | H25: 1 | I25: 1 | J25: 1 | K25: 1 | L25: =IF(O25=1,0,1) -> 1 | M25: =IF(XnA!$I$42="Oui",1,0) -> 0 | N25: 1 | O25: =IF(XnA!$E$45="Electrique",1,0) -> 0 | P25: =SUM(J25+K25+L25+M25)*2 -> 6
A26: 100017496 | B26: =VLOOKUP(A26,Tarif!$1:$1048576,2,FALSE) -> COMPT.FLU.CHAUD US ECHO 2.5M3 | C26: =VLOOKUP(A26,Tarif!$1:$1048576,3,FALSE) -> ER311 | D26: =VLOOKUP(A26,Tarif!$1:$1048576,4,FALSE) -> 476 | F26: 21-30 | G26: 1 | H26: 1 | I26: 1 | J26: 1 | K26: 1 | L26: 1 | M26: =IF(XnA!$I$42="Oui",1,0) -> 0 | N26: 1 | O26: =IF(XnA!$E$45="Electrique",1,0) -> 0 | P26: 6
A27: 100017497 | B27: =VLOOKUP(A27,Tarif!$1:$1048576,2,FALSE) -> COMPT.FLU.CHAUD US ECHO 3.5M3/H | C27: =VLOOKUP(A27,Tarif!$1:$1048576,3,FALSE) -> ER312 | D27: =VLOOKUP(A27,Tarif!$1:$1048576,4,FALSE) -> 531 | F27: 31-50 | G27: 1 | H27: 1 | I27: 1 | J27: 1 | K27: 0 | L27: 1 | M27: =IF(XnA!$I$42="Oui",1,0) -> 0 | N27: 1 | O27: =IF(XnA!$E$45="Electrique",1,0) -> 0 | P27: 4
F28: 51-100 | G28: 1 | H28: 1 | I28: 1 | J28: 1 | K28: 0 | L28: 1 | M28: =IF(XnA!$I$42="Oui",1,0) -> 0 | N28: 1 | O28: =IF(XnA!$E$45="Electrique",1,0) -> 0 | P28: 4
A29: Centrale CME | F29: 101-200 | G29: 1 | H29: 1 | I29: 1 | J29: 1 | K29: 0 | L29: 1 | M29: =IF(XnA!$I$42="Oui",1,0) -> 0 | N29: 1 | O29: =IF(XnA!$E$45="Electrique",1,0) -> 0 | P29: 4
F30: 201-300 | G30: 1 | H30: 1 | I30: 1 | J30: 1 | K30: 0 | L30: 1 | M30: =IF(XnA!$I$42="Oui",1,0) -> 0 | N30: 1 | O30: =IF(XnA!$E$45="Electrique",1,0) -> 0 | P30: 4 | AE30: Débit nominal | AF30: Calibre
A31: 100017498 | B31: =VLOOKUP(A31,Tarif!$1:$1048576,2,FALSE) -> CENTRALE DE MESURE D'ENERGIE CME | C31: =VLOOKUP(A31,Tarif!$1:$1048576,3,FALSE) -> ER313 | D31: =VLOOKUP(A31,Tarif!$1:$1048576,4,FALSE) -> 1641 | AE31: 1,5 m3/h | AF31: DN 15
AE32: 2,5 m3/h | AF32: DN 20
A33: Interface DL2 | F33: Débit | AE33: 3,5 m3/h | AF33: DN 25
E34: ECHO | F34: 1,5 m3/h | G34: =A25 -> 100017495 | I34: =IF(OR(XnA!E42='MAtériels&calculs'!F17,XnA!E42='MAtériels&calculs'!F18,XnA!E42='MAtériels&calculs'!F19,XnA!E42='MAtériels&calculs'!F20),1,0) -> 1 | J34: 100017495 | AE34: 5 m3/h | AF34: DN 30
A35: 100013514 | B35: =VLOOKUP(A35,Tarif!$1:$1048576,2,FALSE) -> DATALOGGER DL2 POUR GRS | C35: =VLOOKUP(A35,Tarif!$1:$1048576,3,FALSE) -> ER55 | D35: =VLOOKUP(A35,Tarif!$1:$1048576,4,FALSE) -> 451 | F35: 2,5 m3/h | G35: =A26 -> 100017496 | I35: =IF(XnA!E42=F21,1,0) -> 0 | J35: 100017496 | AE35: 10 m3/h | AF35: DN 40
F36: 3,5 m3/h | G36: =A27 -> 100017497 | I36: =IF(XnA!E42=F22,1,0) -> 0 | J36: 100017497
A37: 100017499 | B37: =VLOOKUP(A37,Tarif!$1:$1048576,2,FALSE) -> MODULE REPORT DE PANNE OETROSOL AM1 | C37: =VLOOKUP(A37,Tarif!$1:$1048576,3,FALSE) -> ER314 | D37: =VLOOKUP(A37,Tarif!$1:$1048576,4,FALSE) -> 176 | F37: > 3,5 m3/h
E38: ACS | F38: 3,5 m3/h | G38: =A22 -> 100017492
F39: 5 m3/h | G39: =A23 -> 100017493
F40: 10 m3/h | G40: =A24 -> 100017494
A41: 7619964 | B41: =CONCATENATE(VLOOKUP(A41,Tarif!$1:$1048576,2,FALSE)," (besoins ecs)") -> STATION SOLAIRE SKS 13-45 (besoins ecs) | C41: =VLOOKUP(A41,Tarif!$1:$1048576,3,FALSE) -> ER665 | D41: =VLOOKUP(A41,Tarif!$1:$1048576,4,FALSE) -> 662 | F41: ="" ->  | G41: 100019195
A42: 7619966 | B42: =CONCATENATE(VLOOKUP(A42,Tarif!$1:$1048576,2,FALSE)," (besoins ecs)") -> STATION SOLAIRE STS 14-30 CME (besoins ecs) | C42: =VLOOKUP(A42,Tarif!$1:$1048576,3,FALSE) -> ER667 | D42: =VLOOKUP(A42,Tarif!$1:$1048576,4,FALSE) -> 2649
A43: 7619967 | B43: =CONCATENATE(VLOOKUP(A43,Tarif!$1:$1048576,2,FALSE)," (besoins ecs)") -> STATION SOLAIRE STS 14-50 CME (besoins ecs) | C43: =VLOOKUP(A43,Tarif!$1:$1048576,3,FALSE) -> ER668 | D43: =VLOOKUP(A43,Tarif!$1:$1048576,4,FALSE) -> 3057 | F43: Chiffrage
A44: 7619968 | B44: =CONCATENATE(VLOOKUP(A44,Tarif!$1:$1048576,2,FALSE)," (besoins ecs)") -> STATION SOLAIRE STS 14-100 CME (besoins ecs) | C44: =VLOOKUP(A44,Tarif!$1:$1048576,3,FALSE) -> ER669 | D44: =VLOOKUP(A44,Tarif!$1:$1048576,4,FALSE) -> 6114
A45: 7619970 | B45: =CONCATENATE(VLOOKUP(A45,Tarif!$1:$1048576,2,FALSE)," (besoins ecs)") ->  | C45: =VLOOKUP(A45,Tarif!$1:$1048576,3,FALSE) ->  | D45: =VLOOKUP(A45,Tarif!$1:$1048576,4,FALSE) ->  | F45: référence | G45: Désignation | H45: Colis | I45: Prix | J45: Quantité
A46: 7619971 | B46: =CONCATENATE(VLOOKUP(A46,Tarif!$1:$1048576,2,FALSE)," (besoins ecs)") ->  | C46: =VLOOKUP(A46,Tarif!$1:$1048576,3,FALSE) ->  | D46: =VLOOKUP(A46,Tarif!$1:$1048576,4,FALSE) -> 
F47: =G16 -> 100017498 | G47: =IF(F47="","",VLOOKUP(F47,$A$5:$D$35,2,FALSE)) -> CENTRALE DE MESURE D'ENERGIE CME | H47: =IF(F47="","",VLOOKUP(F47,$A$5:$D$35,3,FALSE)) -> ER313 | I47: =IF(F47="","",VLOOKUP(F47,$A$5:$D$35,4,FALSE)) -> 1641 | J47: 1
A48: Régulation deltasol E | F48: =H16 -> 100013514 | G48: =IF(F48="","",VLOOKUP(F48,$A$5:$D$35,2,FALSE)) -> DATALOGGER DL2 POUR GRS | H48: =IF(F48="","",VLOOKUP(F48,$A$5:$D$35,3,FALSE)) -> ER55 | I48: =IF(F48="","",VLOOKUP(F48,$A$5:$D$35,4,FALSE)) -> 451 | J48: 1
F49: =J16 -> 100017492 | G49: COMPTEUR EAU FROIDE ACS 3,5m3/H (besoins ecs) | H49: ER307 | I49: 678 | J49: 1
A50: 7619972 | B50: =CONCATENATE(VLOOKUP(A50,Tarif!$1:$1048576,2,FALSE)," (besoins ecs)") -> REGULATION SOL COLLECTIF SC5 (besoins ecs) | C50: =VLOOKUP(A50,Tarif!$1:$1048576,3,FALSE) -> ER672 | D50: =VLOOKUP(A50,Tarif!$1:$1048576,4,FALSE) -> 596 | F50: =K16 -> 100017495 | G50: COMPT.FLU.CHAUD US ECHO 1.5M3 | H50: ER310 | I50: 430 | J50: =IF(F50="","",1) -> 1 | AE50: RSB + ballon en relève | AG50: 1 | AH50: -1
F51: =L16 -> 100017495 | G51: COMPT.FLU.CHAUD US ECHO 1.5M3 | H51: ER310 | I51: 430 | J51: =IF(F51="","",1) -> 1 | AE51: RSB en série + ballon en relève | AG51: 2 | AH51: -1
A52: Sondes | F52: =M16 ->  | J52: =IF(F52="","",1) ->  | AE52: RSB en parallèle + ballon en relève | AG52: 3 | AH52: -1
F53: =P16 -> 100003690 | G53: SONDE A APPLIQUE PT1000 (2 par compteur) | H53: EC171 | I53: 61 | J53: =VLOOKUP(XnA!E42,F17:P22,11,FALSE)+VLOOKUP(XnA!E12,'MAtériels&calculs'!AE50:AH57,4,FALSE) -> 7 | K53: =VLOOKUP(XnA!E12,'MAtériels&calculs'!AE50:AH57,4,FALSE) -> -1 | AE53: Préparateur FWS ECS instantannée | AG53: 4 | AH53: -2
A54: 89804815 | B54: =CONCATENATE(VLOOKUP(A54,Tarif!$1:$1048576,2,FALSE)," (besoins ecs)") -> SONDE D'IRRADIATION CS10 (besoins ecs) | C54: =VLOOKUP(A54,Tarif!$1:$1048576,3,FALSE) -> EC175 | D54: =VLOOKUP(A54,Tarif!$1:$1048576,4,FALSE) -> 142 | F54: =IF(XnA!E12='MAtériels&calculs'!AE57,VLOOKUP(1,'MAtériels&calculs'!I34:J36,2,FALSE),"") ->  | J54: =IF(I54="","",1) ->  | AE54: Préparateur FWS avec décharge | AG54: 5 | AH54: -2
A55: 100003690 | B55: =CONCATENATE(VLOOKUP(A55,Tarif!$1:$1048576,2,FALSE)," (besoins ecs)") -> SONDE A APPLIQUE PT1000 (besoins ecs) | C55: =VLOOKUP(A55,Tarif!$1:$1048576,3,FALSE) -> EC171 | D55: =VLOOKUP(A55,Tarif!$1:$1048576,4,FALSE) -> 61 | F55: Compteur électrique pour auxiliaires (pompes, régulation) | J55: 1 | AE55: Préparateur à serpentin avec relève intégrée | AG55: 6 | AH55: -2
F56: Compteur électrique pour appoint par résistance électrique | J56: =O18 -> 0 | AE56: Préparateur à serpentin + ballon en relève | AG56: 7 | AH56: -1
A57: Comptage | AE57: Tampon primaire + ballon en relève | AG57: 8 | AH57: 1
A59: 100017492 | B59: =CONCATENATE(VLOOKUP(A59,Tarif!$1:$1048576,2,FALSE)," (besoins ecs)") -> COMPTEUR EAU FROIDE ACS 3,5m3/H (besoins ecs) | C59: =VLOOKUP(A59,Tarif!$1:$1048576,3,FALSE) -> ER307 | D59: =VLOOKUP(A59,Tarif!$1:$1048576,4,FALSE) -> 678
A60: 100017493 | B60: =CONCATENATE(VLOOKUP(A60,Tarif!$1:$1048576,2,FALSE)," (besoins ecs)") -> COMPTEUR EAU FROIDE ACS 5m3/H (besoins ecs) | C60: =VLOOKUP(A60,Tarif!$1:$1048576,3,FALSE) -> ER308 | D60: =VLOOKUP(A60,Tarif!$1:$1048576,4,FALSE) -> 747 | AG60: =VLOOKUP(XnA!E12,'MAtériels&calculs'!AE50:AG57,3,FALSE) -> 1
A61: 100017494 | B61: =CONCATENATE(VLOOKUP(A61,Tarif!$1:$1048576,2,FALSE)," (besoins ecs)") -> COMPTEUR EAU FROIDE ACS 10m3/H (besoins ecs) | C61: =VLOOKUP(A61,Tarif!$1:$1048576,3,FALSE) -> ER309 | D61: =VLOOKUP(A61,Tarif!$1:$1048576,4,FALSE) -> 961
A62: 100017495 | B62: =CONCATENATE(VLOOKUP(A62,Tarif!$1:$1048576,2,FALSE)," (besoins ecs)") -> COMPT.FLU.CHAUD US ECHO 1.5M3 (besoins ecs) | C62: =VLOOKUP(A62,Tarif!$1:$1048576,3,FALSE) -> ER310 | D62: =VLOOKUP(A62,Tarif!$1:$1048576,4,FALSE) -> 430
A63: 100017496 | B63: =CONCATENATE(VLOOKUP(A63,Tarif!$1:$1048576,2,FALSE)," (besoins ecs)") -> COMPT.FLU.CHAUD US ECHO 2.5M3 (besoins ecs) | C63: =VLOOKUP(A63,Tarif!$1:$1048576,3,FALSE) -> ER311 | D63: =VLOOKUP(A63,Tarif!$1:$1048576,4,FALSE) -> 476
A64: 100017497 | B64: =CONCATENATE(VLOOKUP(A64,Tarif!$1:$1048576,2,FALSE)," (besoins ecs)") -> COMPT.FLU.CHAUD US ECHO 3.5M3/H (besoins ecs) | C64: =VLOOKUP(A64,Tarif!$1:$1048576,3,FALSE) -> ER312 | D64: =VLOOKUP(A64,Tarif!$1:$1048576,4,FALSE) -> 531 | AF64: 1
A65: 100019195 | B65: COMPTEUR EAU FROIDE ACS 20m3/H (besoins ecs) | C65: ER317 | D65: 1800 | AF65: 2
A66: Centrale CME | AF66: 3
AF67: 4
A68: 100017498 | B68: CENTRALE DE MESURE D'ENERGIE CME | C68: ER313 | D68: 1450 | AF68: 5
AF69: 6
A70: Interface DL2 | AF70: 7
AF71: 8
A72: 100013514 | B72: DATALOGGER DL2 POUR GRS | C72: ER55 | D72: 399.8
A74: 100017499 | B74: MODULE REPORT DE PANNE DIEMASOL AM1 | C74: ER314 | D74: 156

Sheet XnA
E3: Chiffrage métrologie solaire
E4: Procédure Xna | L4: Version 01/2016
C8: Références
C12: Schéma de principe | E12: RSB + ballon en relève
D42: Surface de capteurs | E42: ≤ 20 | G42: m² | H42: Bouclage ECS | I42: Non
E44: =IF(AND(E42<>surf1,E42<>"21-30"),"Comptage inclus dans la station solaire","") -> 
D45: Appoint | E45: Hydraulique | H45: Débit bouclage | I45: 3,5 m3/h | O45: Non
C46: =IF(E45="Electrique","Mise en place compteur électrique pour l'appoint(non fourni par DD)","") ->  | H46: =IF(I45="> 3,5 m3/h","Compteur non fourni par De Dietrich","") -> 
D47: Débit relève hydraulique | E47: 1,5 m3/h
C48: =IF(E47="> 3,5 m3/h","Compteur non fourni par De Dietrich","") ->  | H48: Pour information, relation entre le débit nominal et le DN de la conduite
D51: Soutirage ECS de pointe | E51: 3,5 m3/h
C52: =IF(E51="> 10 m3/h","Compteur non fourni par De Dietrich","") -> 
C55: Chiffrage de la solution pour comptage d'énergie
C57: Référence | D57: Désignation | I57: Colis | J57: Qté | K57: Prix
C58: Métrologie
C59: ='MAtériels&calculs'!F47 -> 100017498 | D59: ='MAtériels&calculs'!G47 -> CENTRALE DE MESURE D'ENERGIE CME | I59: ='MAtériels&calculs'!H47 -> ER313 | J59: ='MAtériels&calculs'!J47 -> 1 | K59: =IF(C59<>"",J59*'MAtériels&calculs'!I47,"") -> 1641
C60: ='MAtériels&calculs'!F48 -> 100013514 | D60: ='MAtériels&calculs'!G48 -> DATALOGGER DL2 POUR GRS | I60: ='MAtériels&calculs'!H48 -> ER55 | J60: ='MAtériels&calculs'!J48 -> 1 | K60: =IF(C60<>"",J60*'MAtériels&calculs'!I48,"") -> 451
C62: =IF(E51="> 10 m3/h","",'MAtériels&calculs'!F49) -> 100017492 | D62: =IF(E51="> 10 m3/h","",'MAtériels&calculs'!G49) -> COMPTEUR EAU FROIDE ACS 3,5m3/H (besoins ecs) | I62: =IF(E51="> 10 m3/h","",'MAtériels&calculs'!H49) -> ER307 | J62: =IF(E51="> 10 m3/h","",'MAtériels&calculs'!J49) -> 1 | K62: =IF(C62<>"",J62*'MAtériels&calculs'!I49,"") -> 678
C63: ='MAtériels&calculs'!F50 -> 100017495 | D63: ='MAtériels&calculs'!G50 -> COMPT.FLU.CHAUD US ECHO 1.5M3 | I63: ='MAtériels&calculs'!H50 -> ER310 | J63: ='MAtériels&calculs'!J50 -> 1 | K63: =IF(C63<>"",J63*'MAtériels&calculs'!I50,"") -> 430
C64: =IF(E47="> 3,5 m3/h","",'MAtériels&calculs'!F51) -> 100017495 | D64: =IF(E47="> 3,5 m3/h","",'MAtériels&calculs'!G51) -> COMPT.FLU.CHAUD US ECHO 1.5M3 | I64: =IF(E47="> 3,5 m3/h","",'MAtériels&calculs'!H51) -> ER310 | J64: =IF(E47="> 3,5 m3/h","",'MAtériels&calculs'!J51) -> 1 | K64: =IF(C64<>"",J64*'MAtériels&calculs'!I51,"") -> 430
C65: =IF(I45="> 3,5 m3/h","",'MAtériels&calculs'!F52) ->  | D65: =IF(I45="> 3,5 m3/h","",'MAtériels&calculs'!G52) ->  | I65: =IF(I45="> 3,5 m3/h","",'MAtériels&calculs'!H52) ->  | J65: =IF(I45="> 3,5 m3/h","",'MAtériels&calculs'!J52) ->  | K65: =IF(C65<>"",J65*'MAtériels&calculs'!I52,"") -> 
C66: ='MAtériels&calculs'!F53 -> 100003690 | D66: ='MAtériels&calculs'!G53 -> SONDE A APPLIQUE PT1000 (2 par compteur) | I66: ='MAtériels&calculs'!H53 -> EC171 | J66: ='MAtériels&calculs'!J53 -> 7 | K66: =IF(C66<>"",J66*'MAtériels&calculs'!I53,"") -> 427
C67: ='MAtériels&calculs'!F54 ->  | D67: ='MAtériels&calculs'!G54 ->  | I67: ='MAtériels&calculs'!H54 ->  | J67: ='MAtériels&calculs'!J54 ->  | K67: =IF(C67<>"",J67*'MAtériels&calculs'!I54,"") -> 
C68: Compteur(s) obligatoire(s) pour le comptage d'énergie
C69: ='MAtériels&calculs'!F55 -> Compteur électrique pour auxiliaires (pompes, régulation) | J69: ='MAtériels&calculs'!J55 -> 1
C70: ='MAtériels&calculs'!F56 -> Compteur électrique pour appoint par résistance électrique | J70: ='MAtériels&calculs'!J56 -> 0
C72: Options
C73: =VLOOKUP(E42,'MAtériels&calculs'!F3:H8,3,FALSE) -> 7619964 | D73: =VLOOKUP(C73,'MAtériels&calculs'!$A$4:$D$35,2,FALSE) -> STATION SOLAIRE SKS 13-45 | I73: =VLOOKUP(C73,'MAtériels&calculs'!$A$4:$D$35,3,FALSE) -> ER665 | J73: 0 | K73: =IF(J73=0,"",J73*VLOOKUP(C73,'MAtériels&calculs'!$A$5:$D$35,4,FALSE)) -> 
C74: =VLOOKUP(E42,'MAtériels&calculs'!F3:J8,5,FALSE) -> 7619972 | D74: =IF(C74="","",VLOOKUP(C74,'MAtériels&calculs'!A5:D36,2,FALSE)) -> REGULATION SOL COLLECTIF SC5 | I74: =IF(C74="","",VLOOKUP(C74,'MAtériels&calculs'!A5:D36,3,FALSE)) -> ER672 | J74: 0
C75: ='MAtériels&calculs'!A17 -> 89804815 | D75: ='MAtériels&calculs'!B17 -> SONDE D'IRRADIATION CS10 | I75: ='MAtériels&calculs'!C17 -> EC175 | J75: 1 | K75: =IF(C75<>"",J75*'MAtériels&calculs'!D17,"") -> 142
C76: ='MAtériels&calculs'!A37 -> 100017499 | D76: ='MAtériels&calculs'!B37 -> MODULE REPORT DE PANNE OETROSOL AM1 | I76: ='MAtériels&calculs'!C37 -> ER314 | J76: 1 | K76: =J76*'MAtériels&calculs'!D37 -> 176
C81: Total PPHT 2016 : | J81: =SUM(K59:K80) -> 4375
C87: Les résultats de cette feuille de calcul sont donnés à titre indicatif. La responsabilité de OERTLI ne peut en aucun cas être engagée.
